fUSD/lending_fUSD_20260531
["ID","MTS","AMOUNT","RATE_DAILY","PERIOD"]
[423557060,1780222234000,-421.0,0.00014907,2]
[423557065,1780222234000,-376.0,0.00014946,2]
[423557066,1780222234000,-386.0,0.00014953,2]
[423557064,1780222234000,-425.0,0.00014937,2]
[423557067,1780222234000,-376.0,0.00014954,2]
[423557068,1780222234000,-425.0,0.00014955,2]
[423557069,1780222234000,-376.0,0.00014958,2]
[423557085,1780222234000,-500.0,0.00014998,2]
[423557070,1780222234000,-381.0,0.00014959,2]
[423557073,1780222234000,-376.0,0.00014979,2]
[423557074,1780222234000,-381.0,0.00014983,2]
[423557076,1780222234000,-425.0,0.00014989,2]
[423557077,1780222234000,-376.0,0.00014989,2]
[423557075,1780222234000,-150.0,0.00014986,2]
[423557079,1780222234000,-386.0,0.00014992,2]
[423557081,1780222234000,-500.0,0.00014998,2]
[423557082,1780222234000,-500.0,0.00014998,2]
[423557078,1780222234000,-159.23480163,0.0001499,2]
[423557080,1780222234000,-376.0,0.00014998,2]
[423557084,1780222234000,-500.0,0.00014998,2]
[423557083,1780222234000,-500.0,0.00014998,2]
[423557071,1780222234000,-273.05167002,0.0001496,2]
[423557115,1780222234000,-500.0,0.00014999,2]
[423557127,1780222234000,-500.0,0.00014999,2]
[423557117,1780222234000,-511.96171548,0.00014999,2]
[423557149,1780222234000,-600.26,0.00014999,2]
[423557154,1780222234000,-600.26,0.00014999,2]
[423557152,1780222234000,-600.26,0.00014999,2]
[423557151,1780222234000,-600.26,0.00014999,2]
[423557148,1780222234000,-600.26,0.00014999,2]
[423557150,1780222234000,-600.26,0.00014999,2]
[423557156,1780222234000,-600.44,0.00014999,2]
[423557157,1780222234000,-500.0,0.00014999,2]
[423557155,1780222234000,-600.26,0.00014999,2]
[423557158,1780222234000,-500.0,0.00014999,2]
[423557159,1780222234000,-500.0,0.00014999,2]
[423557160,1780222234000,-500.0,0.00014999,2]
[423557147,1780222234000,-600.26,0.00014999,2]
[423557161,1780222234000,-500.0,0.00014999,2]
[423557164,1780222234000,-156.0,0.00014999,2]
[423557163,1780222234000,-323.35560358,0.00014999,2]
[423557165,1780222234000,-1321.78,0.00014999,2]
[423557167,1780222234000,-1321.78,0.00014999,2]
[423557166,1780222234000,-1321.78,0.00014999,2]
[423557168,1780222234000,-1321.78,0.00014999,2]
[423557170,1780222234000,-1321.78,0.00014999,2]
[423557169,1780222234000,-1321.78,0.00014999,2]
[423557171,1780222234000,-1321.78,0.00014999,2]
[423557172,1780222234000,-1321.78,0.00014999,2]
[423557173,1780222234000,-1321.78,0.00014999,2]
[423557118,1780222234000,-500.0,0.00014999,2]
[423557162,1780222234000,-500.0,0.00014999,2]
[423557145,1780222234000,-600.26,0.00014999,2]
[423557153,1780222234000,-600.26,0.00014999,2]
[423557142,1780222234000,-600.26,0.00014999,2]
[423557116,1780222234000,-471.99,0.00014999,2]
[423557120,1780222234000,-500.0,0.00014999,2]
[423557119,1780222234000,-500.0,0.00014999,2]
[423557122,1780222234000,-500.0,0.00014999,2]
[423557121,1780222234000,-500.0,0.00014999,2]
[423557124,1780222234000,-500.0,0.00014999,2]
[423557123,1780222234000,-500.0,0.00014999,2]
[423557174,1780222234000,-1321.78,0.00014999,2]
[423557128,1780222234000,-500.0,0.00014999,2]
[423557126,1780222234000,-490.7648361,0.00014999,2]
[423557146,1780222234000,-600.26,0.00014999,2]
[423557131,1780222234000,-500.0,0.00014999,2]
[423557129,1780222234000,-500.0,0.00014999,2]
[423557125,1780222234000,-500.0,0.00014999,2]
[423557132,1780222234000,-500.0,0.00014999,2]
[423557144,1780222234000,-600.26,0.00014999,2]
[423557143,1780222234000,-600.26,0.00014999,2]
[423557130,1780222234000,-500.0,0.00014999,2]
[423557138,1780222234000,-600.26,0.00014999,2]
[423557139,1780222234000,-600.26,0.00014999,2]
[423557141,1780222234000,-600.26,0.00014999,2]
[423557136,1780222234000,-500.0,0.00014999,2]
[423557134,1780222234000,-500.0,0.00014999,2]
[423557137,1780222234000,-600.26,0.00014999,2]
[423557135,1780222234000,-500.0,0.00014999,2]
[423557133,1780222234000,-500.0,0.00014999,2]
[423557140,1780222234000,-600.26,0.00014999,2]
[423557181,1780222235000,-1321.78,0.00014999,2]
[423557176,1780222235000,-1321.78,0.00014999,2]
[423557177,1780222235000,-1321.78,0.00014999,2]
[423557178,1780222235000,-1321.78,0.00014999,2]
[423557179,1780222235000,-1321.78,0.00014999,2]
[423557180,1780222235000,-1321.78,0.00014999,2]
[423557182,1780222235000,-1321.78,0.00014999,2]
[423557175,1780222235000,-1321.78,0.00014999,2]
[423557185,1780222235000,-300.0,0.00014999,2]
[423557190,1780222235000,-5683.50252936,0.00015,2]
[423557189,1780222235000,-300.0,0.00014999,2]
[423557188,1780222235000,-300.0,0.00014999,2]
[423557183,1780222235000,-1321.78,0.00014999,2]
[423557187,1780222235000,-666.0,0.00014999,2]
[423557186,1780222235000,-300.0,0.00014999,2]
[423557184,1780222235000,-1321.93322507,0.00014999,2]
[423557223,1780222244000,-717.99485577,0.00013561,2]
[423557237,1780222246000,-4868.93058496,0.00013561,2]
[423557236,1780222246000,-295.63,0.00013561,2]
[423557239,1780222248000,190.73998012,0.0003,120]
[423557247,1780222594000,1893.29,0.00030137,120]
[423557249,1780222685000,10899.0,0.0003013,120]
[423557250,1780222686000,14805.0,0.0003013,120]
[423557251,1780222687000,13185.0,0.0003013,120]
[423557252,1780222688000,1633.0,0.0003013,120]
[423557253,1780222741000,5937.0,0.0003013,120]
[423557254,1780222742000,2236.0,0.0003013,120]
[423557256,1780222802000,15385.0,0.0003013,120]
[423557257,1780222861000,3887.0,0.0003013,120]
[423557259,1780222914000,152.0,0.00030131,120]
[423557261,1780223116000,655.67,0.00030082,120]
[423557262,1780223302000,430.85,0.00030137,120]
[423557264,1780223341000,1000.0,0.00030136,120]
[423557275,1780223431000,553.16073949,0.00025668,120]
[423557277,1780223431000,-228.09413106,0.00010696,2]
[423557278,1780223431000,-25.37129983,0.00010696,2]
[423557276,1780223431000,-271.90586894,0.00010696,2]
[423557285,1780223431000,-500.0,0.00010696,2]
[423557280,1780223431000,-21.62433816,0.00010696,2]
[423557281,1780223431000,-500.0,0.00010696,2]
[423557283,1780223431000,-338.43721428,0.00010696,2]
[423557282,1780223431000,-161.56278572,0.00010696,2]
[423557288,1780223431000,-500.0,0.00010696,2]
[423557284,1780223431000,-500.0,0.00010696,2]
[423557287,1780223431000,-500.0,0.00010696,2]
[423557279,1780223431000,-453.00436201,0.00010696,2]
[423557286,1780223431000,-500.0,0.00010696,2]
[423557303,1780223431000,-500.0,0.00010696,2]
[423557290,1780223431000,-500.0,0.00010696,2]
[423557305,1780223431000,-500.0,0.00010696,2]
[423557298,1780223431000,-500.0,0.00010696,2]
[423557296,1780223431000,-500.0,0.00010696,2]
[423557295,1780223431000,-500.0,0.00010696,2]
[423557293,1780223431000,-500.0,0.00010696,2]
[423557306,1780223431000,-500.0,0.00010696,2]
[423557304,1780223431000,-500.0,0.00010696,2]
[423557289,1780223431000,-500.0,0.00010696,2]
[423557300,1780223431000,-500.0,0.00010696,2]
[423557294,1780223431000,-500.0,0.00010696,2]
[423557301,1780223431000,-500.0,0.00010696,2]
[423557291,1780223431000,-500.0,0.00010696,2]
[423557292,1780223431000,-500.0,0.00010696,2]
[423557333,1780223432000,-204.0,0.00011761,2]
[423557326,1780223432000,-500.0,0.00010696,2]
[423557327,1780223432000,-300.0,0.00010699,2]
[423557322,1780223432000,-500.0,0.00010696,2]
[423557325,1780223432000,-500.0,0.00010696,2]
[423557320,1780223432000,-500.0,0.00010696,2]
[423557328,1780223432000,-300.0,0.00010699,2]
[423557330,1780223432000,-13745.36022411,0.000107,2]
[423557329,1780223432000,-1200.0,0.00010699,2]
[423557331,1780223432000,-209.17060647,0.00010823,2]
[423557324,1780223432000,-500.0,0.00010696,2]
[423557332,1780223432000,-150.33,0.00011382,2]
[423557308,1780223432000,-500.0,0.00010696,2]
[423557315,1780223432000,-500.0,0.00010696,2]
[423557313,1780223432000,-500.0,0.00010696,2]
[423557311,1780223432000,-500.0,0.00010696,2]
[423557345,1780223432000,-2102.64,0.00012123,2]
[423557316,1780223432000,-500.0,0.00010696,2]
[423557317,1780223432000,-500.0,0.00010696,2]
[423557319,1780223432000,-500.0,0.00010696,2]
[423557312,1780223432000,-500.0,0.00010696,2]
[423557309,1780223432000,-500.0,0.00010696,2]
[423557314,1780223432000,-500.0,0.00010696,2]
[423557318,1780223432000,-500.0,0.00010696,2]
[423557321,1780223432000,-500.0,0.00010696,2]
[423557347,1780223432000,-655.67,0.00012329,2]
[423557367,1780223432000,-2102.64,0.0001301,2]
[423557336,1780223432000,-1680.0,0.00011769,2]
[423557334,1780223432000,-250.0,0.00011769,2]
[423557377,1780223432000,-116419.05160423,0.00013361,2]
[423557375,1780223432000,-4891.20998475,0.00013361,2]
[423557376,1780223432000,-811.50471421,0.00013361,2]
[423557373,1780223432000,-150.0,0.0001336,2]
[423557368,1780223432000,-240.73375964,0.00013261,2]
[423557361,1780223432000,-154.86,0.00012807,2]
[423557369,1780223432000,-337.29,0.00013284,2]
[423557370,1780223432000,-253.47364093,0.00013339,2]
[423557372,1780223432000,-250.0,0.00013348,2]
[423557365,1780223432000,-2351.0,0.00012946,2]
[423557371,1780223432000,-286.0,0.00013342,2]
[423557374,1780223432000,-16864.67201129,0.00013361,2]
[423557363,1780223432000,-167.26,0.00012894,2]
[423557349,1780223432000,-2102.64,0.00012418,2]
[423557351,1780223432000,-150.33,0.0001258,2]
[423557366,1780223432000,-165.23,0.00012957,2]
[423557355,1780223432000,-150.0,0.00012697,2]
[423557344,1780223432000,-288.69,0.00012077,2]
[423557342,1780223432000,-2000.0,0.00011965,2]
[423557338,1780223432000,-200.0,0.00011795,2]
[423557340,1780223432000,-2102.64,0.00011827,2]
[423557359,1780223432000,-150.0,0.0001272,2]
[423557357,1780223432000,-2102.64,0.00012714,2]
[423557353,1780223432000,-195.4,0.0001258,2]
[423557391,1780223437000,-1553.52,0.00013361,2]
[423557386,1780223437000,-760.11851838,0.00013361,2]
[423557387,1780223437000,-10758.72476643,0.00013361,2]
[423557388,1780223437000,-1335.54199583,0.00013361,2]
[423557389,1780223437000,-557.49671702,0.00013361,2]
[423557390,1780223437000,-1872.89034925,0.00013361,2]
[423557393,1780223437000,-3568.85180875,0.00013361,2]
[423557392,1780223437000,-6190.11464838,0.00013361,2]
[423557397,1780223437000,-796.01393388,0.00013441,2]
[423557395,1780223437000,-822278.78125523,0.00013361,2]
[423557402,1780223437000,-500.0,0.00013488,2]
[423557399,1780223437000,-2000.0,0.00013461,2]
[423557394,1780223437000,-535.41792625,0.00013361,2]
[423557400,1780223437000,-33237.5546,0.00013461,2]
[423557401,1780223437000,-27216.2444,0.00013461,2]
[423557398,1780223437000,-33822.30459351,0.00013458,2]
[423557396,1780223437000,-600.0,0.00013361,2]
[423557437,1780223438000,-500.0,0.00013698,2]
[423557441,1780223438000,-500.0,0.00013698,2]
[423557443,1780223438000,-500.0,0.00013698,2]
[423557440,1780223438000,-500.0,0.00013698,2]
[423557442,1780223438000,-500.0,0.00013698,2]
[423557450,1780223438000,-616.18,0.00013698,2]
[423557446,1780223438000,-500.0,0.00013698,2]
[423557448,1780223438000,-500.0,0.00013698,2]
[423557449,1780223438000,-500.0,0.00013698,2]
[423557447,1780223438000,-500.0,0.00013698,2]
[423557435,1780223438000,-500.0,0.00013698,2]
[423557456,1780223438000,-500.0,0.00013698,2]
[423557436,1780223438000,-500.0,0.00013698,2]
[423557439,1780223438000,-500.0,0.00013698,2]
[423557455,1780223438000,-500.0,0.00013698,2]
[423557451,1780223438000,-500.0,0.00013698,2]
[423557453,1780223438000,-500.0,0.00013698,2]
[423557454,1780223438000,-500.0,0.00013698,2]
[423557458,1780223438000,-166.66,0.00013699,2]
[423557452,1780223438000,-500.0,0.00013698,2]
[423557460,1780223438000,-500.0,0.00013762,2]
[423557469,1780223438000,-2164.528491,0.00013939,2]
[423557462,1780223438000,-33822.30459349,0.00013778,2]
[423557471,1780223438000,-2164.528491,0.00013939,2]
[423557459,1780223438000,-150.0,0.0001376,2]
[423557470,1780223438000,-2164.528491,0.00013939,2]
[423557466,1780223438000,-150.0,0.00013896,2]
[423557465,1780223438000,-3010.21936025,0.00013892,2]
[423557444,1780223438000,-500.0,0.00013698,2]
[423557457,1780223438000,-200.0,0.00013699,2]
[423557438,1780223438000,-500.0,0.00013698,2]
[423557413,1780223438000,-33822.30459349,0.00013618,2]
[423557433,1780223438000,-500.0,0.00013698,2]
[423557404,1780223438000,-150.0,0.00013488,2]
[423557403,1780223438000,-150.0,0.00013488,2]
[423557406,1780223438000,-150.0,0.00013488,2]
[423557418,1780223438000,-500.0,0.00013698,2]
[423557405,1780223438000,-150.0,0.00013488,2]
[423557414,1780223438000,-150.0,0.00013624,2]
[423557416,1780223438000,-3010.21936025,0.00013691,2]
[423557408,1780223438000,-150.0,0.00013488,2]
[423557411,1780223438000,-500.0,0.00013589,2]
[423557415,1780223438000,-240.73375964,0.00013636,2]
[423557407,1780223438000,-150.0,0.00013488,2]
[423557410,1780223438000,-151.0,0.00013558,2]
[423557412,1780223438000,-190.36866365,0.00013599,2]
[423557409,1780223438000,-184.13134432,0.00013557,2]
[423557445,1780223438000,-505.87527888,0.00013698,2]
[423557419,1780223438000,-500.0,0.00013698,2]
[423557429,1780223438000,-500.0,0.00013698,2]
[423557422,1780223438000,-500.0,0.00013698,2]
[423557428,1780223438000,-500.0,0.00013698,2]
[423557432,1780223438000,-500.0,0.00013698,2]
[423557463,1780223438000,-300.0,0.000138,5]
[423557430,1780223438000,-500.0,0.00013698,2]
[423557420,1780223438000,-500.0,0.00013698,2]
[423557424,1780223438000,-500.0,0.00013698,2]
[423557421,1780223438000,-500.0,0.00013698,2]
[423557427,1780223438000,-303.83318809,0.00013698,2]
[423557425,1780223438000,-500.0,0.00013698,2]
[423557423,1780223438000,-500.0,0.00013698,2]
[423557426,1780223438000,-500.0,0.00013698,2]
[423557434,1780223438000,-202.78843615,0.00013698,2]
[423557431,1780223438000,-500.0,0.00013698,2]
[423557464,1780223438000,-166.66,0.00013836,2]
[423557524,1780223438000,-500.0,0.0001463,2]
[423557461,1780223438000,-151.46366699,0.00013768,2]
[423557512,1780223438000,-151.0,0.00014456,2]
[423557504,1780223438000,-2164.528491,0.00014442,2]
[423557503,1780223438000,-19454.85546979,0.00014442,2]
[423557506,1780223438000,-2164.528491,0.00014442,2]
[423557511,1780223438000,-151.0,0.00014442,2]
[423557507,1780223438000,-2164.528491,0.00014442,2]
[423557509,1780223438000,-151.0,0.00014442,2]
[423557508,1780223438000,-151.0,0.00014442,2]
[423557514,1780223438000,-3010.21936025,0.00014497,2]
[423557525,1780223438000,-337.67,0.00014675,2]
[423557517,1780223438000,-350.0,0.00014569,2]
[423557515,1780223438000,-1000.0,0.000145,5]
[423557520,1780223438000,-500.0,0.00014584,2]
[423557522,1780223438000,-1400.0,0.000146,5]
[423557505,1780223438000,-2164.528491,0.00014442,2]
[423557516,1780223438000,-350.0,0.0001454,2]
[423557519,1780223438000,-33822.30459349,0.0001458,2]
[423557518,1780223438000,-150.0,0.00014578,2]
[423557523,1780223438000,-350.0,0.00014611,2]
[423557526,1780223438000,-181.03128884,0.00014683,2]
[423557528,1780223438000,-151.0,0.000147,2]
[423557527,1780223438000,-3010.21936025,0.00014698,2]
[423557530,1780223438000,-2000.0,0.00014713,2]
[423557529,1780223438000,-1700.0,0.000147,5]
[423557535,1780223438000,-930280.1248902,0.00014783,2]
[423557531,1780223438000,-150.0,0.00014714,2]
[423557534,1780223438000,-471.67,0.00014758,2]
[423557532,1780223438000,-33822.30459349,0.0001474,2]
[423557533,1780223438000,-19454.85546979,0.00014747,2]
[423557472,1780223438000,-2164.528491,0.00013939,2]
[423557513,1780223438000,-255.0,0.00014469,2]
[423557500,1780223438000,-33822.30459349,0.00014419,2]
[423557521,1780223438000,-19454.85546979,0.00014595,2]
[423557502,1780223438000,-150.0,0.00014441,2]
[423557510,1780223438000,-151.0,0.00014442,2]
[423557468,1780223438000,-33822.30459349,0.00013939,2]
[423557467,1780223438000,-700.0,0.000139,5]
[423557473,1780223438000,-151.0,0.00013939,2]
[423557484,1780223438000,-33822.30459349,0.00014099,2]
[423557476,1780223438000,-151.0,0.00013939,2]
[423557480,1780223438000,-250.0,0.00014,2]
[423557477,1780223438000,-166.66,0.00013973,2]
[423557485,1780223438000,-166.66,0.0001411,2]
[423557479,1780223438000,-41194.13762555,0.00014,3]
[423557475,1780223438000,-151.0,0.00013939,2]
[423557481,1780223438000,-150.0,0.00014033,2]
[423557483,1780223438000,-3010.21936025,0.00014094,2]
[423557478,1780223438000,-14090.15774791,0.0001399,2]
[423557482,1780223438000,-500.0,0.00014036,2]
[423557474,1780223438000,-151.0,0.00013939,2]
[423557487,1780223438000,-1000.0,0.00014166,2]
[423557499,1780223438000,-4546.780162,0.00014404,2]
[423557497,1780223438000,-500.0,0.00014329,2]
[423557501,1780223438000,-350.0,0.00014428,2]
[423557496,1780223438000,-500.0,0.0001431,2]
[423557490,1780223438000,-166.66,0.00014247,2]
[423557493,1780223438000,-19454.85546979,0.00014289,2]
[423557489,1780223438000,-2796.0,0.0001424,2]
[423557492,1780223438000,-3227.187597,0.00014288,2]
[423557495,1780223438000,-150.0,0.00014305,2]
[423557491,1780223438000,-33822.30459349,0.00014259,2]
[423557498,1780223438000,-166.66,0.00014384,2]
[423557494,1780223438000,-3010.21936025,0.00014295,2]
[423557488,1780223438000,-150.0,0.00014169,2]
[423557486,1780223438000,-19454.85546979,0.00014137,2]
[423557564,1780223439000,-350.0,0.00014871,2]
[423557561,1780223439000,-150.0,0.0001485,2]
[423557560,1780223439000,-277.68664327,0.00014838,2]
[423557558,1780223439000,-500.0,0.00014837,4]
[423557562,1780223439000,-500.0,0.00014858,2]
[423557563,1780223439000,-1148.07,0.00014862,2]
[423557559,1780223439000,-500.0,0.00014837,5]
[423557565,1780223439000,-478.36,0.00014872,2]
[423557571,1780223439000,-2328.71193574,0.000149,2]
[423557567,1780223439000,-692.53807337,0.000149,2]
[423557566,1780223439000,-19454.85546979,0.000149,2]
[423557569,1780223439000,-3010.21936025,0.000149,2]
[423557572,1780223439000,-4471.18781428,0.000149,2]
[423557568,1780223439000,-300.0,0.000149,5]
[423557575,1780223439000,-2000.0,0.00014956,2]
[423557557,1780223439000,-500.0,0.00014837,3]
[423557574,1780223439000,-337.29,0.00014944,2]
[423557570,1780223439000,-33822.30459349,0.000149,2]
[423557553,1780223439000,-151.0,0.00014783,2]
[423557541,1780223439000,-151.0,0.00014783,2]
[423557556,1780223439000,-500.0,0.00014837,2]
[423557585,1780223439000,-500.0,0.00014999,2]
[423557538,1780223439000,-151.0,0.00014783,2]
[423557537,1780223439000,-3040.2152119,0.00014783,2]
[423557536,1780223439000,-12981.6676965,0.00014783,2]
[423557549,1780223439000,-2164.528491,0.00014783,2]
[423557544,1780223439000,-19622.2210265,0.00014783,2]
[423557545,1780223439000,-1823.7083436,0.00014783,2]
[423557550,1780223439000,-2164.528491,0.00014783,2]
[423557555,1780223439000,-300.0,0.000148,5]
[423557547,1780223439000,-2164.528491,0.00014783,2]
[423557542,1780223439000,-151.0,0.00014783,2]
[423557543,1780223439000,-21674.1996948,0.00014783,2]
[423557546,1780223439000,-158.0,0.00014783,2]
[423557548,1780223439000,-2164.528491,0.00014783,2]
[423557539,1780223439000,-10384.7110881,0.00014783,2]
[423557551,1780223439000,-151.0,0.00014783,2]
[423557552,1780223439000,-151.0,0.00014783,2]
[423557554,1780223439000,-151.0,0.00014783,2]
[423557540,1780223439000,-1020.3370621,0.00014783,2]
[423557576,1780223439000,-250.0,0.00014985,2]
[423557573,1780223439000,-500.0,0.00014932,2]
[423557584,1780223439000,-500.0,0.00014999,2]
[423557614,1780223439000,-500.0,0.00014999,2]
[423557600,1780223439000,-500.0,0.00014999,7]
[423557604,1780223439000,-500.0,0.00014999,10]
[423557601,1780223439000,-500.0,0.00014999,8]
[423557602,1780223439000,-500.0,0.00014999,9]
[423557606,1780223439000,-500.0,0.00014999,11]
[423557616,1780223439000,-244.18,0.00014999,2]
[423557618,1780223439000,-300.0,0.00014999,2]
[423557598,1780223439000,-500.0,0.00014999,2]
[423557619,1780223439000,-300.0,0.00014999,2]
[423557621,1780223439000,-300.0,0.00014999,2]
[423557622,1780223439000,-524970.28038483,0.00015,2]
[423557623,1780223439000,-6674.93093468,0.00015,2]
[423557625,1780223439000,-713.71647197,0.00015,2]
[423557624,1780223439000,-476.77187958,0.00015,2]
[423557627,1780223439000,-549.20932177,0.00015,2]
[423557626,1780223439000,-867.04626424,0.00015,2]
[423557577,1780223439000,-150.0,0.00014986,2]
[423557620,1780223439000,-776.12834704,0.00014999,2]
[423557610,1780223439000,-500.0,0.00014999,13]
[423557608,1780223439000,-500.0,0.00014999,12]
[423557599,1780223439000,-500.0,0.00014999,6]
[423557580,1780223439000,-150.0,0.00014986,2]
[423557612,1780223439000,-544.53548151,0.00014999,14]
[423557579,1780223439000,-150.0,0.00014986,2]
[423557628,1780223439000,-1802.21210783,0.00015,2]
[423557583,1780223439000,-500.0,0.00014999,2]
[423557581,1780223439000,-150.0,0.00014986,2]
[423557582,1780223439000,-287.02,0.00014999,2]
[423557587,1780223439000,-500.0,0.00014999,2]
[423557597,1780223439000,-500.0,0.00014999,2]
[423557589,1780223439000,-500.0,0.00014999,2]
[423557578,1780223439000,-150.0,0.00014986,2]
[423557593,1780223439000,-500.0,0.00014999,2]
[423557591,1780223439000,-500.0,0.00014999,2]
[423557588,1780223439000,-500.0,0.00014999,2]
[423557595,1780223439000,-500.0,0.00014999,2]
[423557590,1780223439000,-560.76,0.00014999,2]
[423557594,1780223439000,-500.0,0.00014999,2]
[423557596,1780223439000,-500.0,0.00014999,2]
[423557592,1780223439000,-500.0,0.00014999,2]
[423557586,1780223439000,-500.0,0.00014999,2]
[423557742,1780223440000,-2874.02810723,0.00015,2]
[423557735,1780223440000,-240.73375964,0.0001401,2]
[423557740,1780223440000,-652.08200092,0.00015,2]
[423557737,1780223440000,-310970.19447279,0.00015,2]
[423557747,1780223440000,-2394.04644165,0.00015,2]
[423557754,1780223440000,-300.13246974,0.00015,2]
[423557752,1780223440000,-43323.19787192,0.00015,2]
[423557757,1780223440000,-595.85768052,0.00015,2]
[423557750,1780223440000,-3454.1114814,0.00015,2]
[423557778,1780223441000,-579.86166025,0.00015,2]
[423557771,1780223441000,-404.75,0.00015,2]
[423557775,1780223441000,-311.98467859,0.00015,2]
[423557773,1780223441000,-1421.47144869,0.00015,2]
[423557759,1780223441000,-2962.65685451,0.00015,2]
[423557997,1780223442000,-5710.33493003,0.00015,2]
[423557994,1780223442000,-741.64121531,0.00015,2]
[423558048,1780223443000,-934.13766006,0.00015,2]
[423558038,1780223443000,-327.17931073,0.00015,2]
[423558051,1780223443000,-1146.57140496,0.00015,2]
[423558069,1780223443000,-1424.75950926,0.00015,2]
[423558059,1780223443000,-1242.38212721,0.00015,2]
[423558053,1780223443000,-968.38065445,0.00015,2]
[423558061,1780223443000,-290.0,0.00015,2]
[423558041,1780223443000,-12603.70379702,0.00015,2]
[423558388,1780223445000,-822.41952396,0.00015,2]
[423558393,1780223445000,-732.23943309,0.00015,2]
[423558391,1780223445000,-1214.4934853,0.00015,2]
[423558352,1780223445000,-635.05573855,0.00015,2]
[423558350,1780223445000,-14950.81141236,0.00015,2]
[423558348,1780223445000,-3269.05551518,0.00015,2]
[423558407,1780223446000,-934.64226375,0.00015,2]
[423558408,1780223446000,-4266.218,0.00015,2]
[423558399,1780223446000,-555516.33849392,0.00015,2]
[423558415,1780223446000,-370.45,0.00015,2]
[423558417,1780223446000,-707.16647587,0.00015,2]
[423558420,1780223446000,-1783.65937132,0.00015,2]
[423558409,1780223446000,-6337.07173078,0.00015,2]
[423559471,1780224541000,1000.0,0.00030135,120]
[423559476,1780224555000,-500.0,0.0001069,2]
[423559472,1780224555000,-304.17750839,0.00010591,2]
[423559474,1780224555000,-150.0,0.0001069,2]
[423559475,1780224555000,-500.0,0.0001069,2]
[423559477,1780224555000,-500.0,0.0001069,2]
[423559473,1780224555000,-285.16453692,0.00010592,2]
[423559478,1780224555000,-500.0,0.0001069,2]
[423559481,1780224555000,-500.0,0.0001069,2]
[423559480,1780224555000,-500.0,0.0001069,2]
[423559483,1780224555000,-500.0,0.0001069,2]
[423559482,1780224555000,-500.0,0.0001069,2]
[423559484,1780224555000,-361.56395069,0.0001069,2]
[423559479,1780224555000,-500.0,0.0001069,2]
[423559533,1780224632000,-40526.3,0.00012645,2]
[423559534,1780224632000,-2000.0,0.00012708,2]
[423559535,1780224632000,-152.24,0.00012724,2]
[423559539,1780224632000,-433.0,0.0001286,2]
[423559546,1780224632000,-151.99,0.00013221,2]
[423559538,1780224632000,-152.24,0.00012838,2]
[423559530,1780224632000,-152.24,0.00012496,2]
[423559537,1780224632000,-269.84,0.00012793,2]
[423559547,1780224632000,-500.0,0.00013233,2]
[423559536,1780224632000,-500.0,0.00012793,2]
[423559528,1780224632000,-152.24,0.00012268,2]
[423559527,1780224632000,-150.0,0.00012192,2]
[423559532,1780224632000,-152.24,0.0001261,2]
[423559531,1780224632000,-156.95,0.00012602,2]
[423559525,1780224632000,-77.91569776,0.00012154,2]
[423559526,1780224632000,-165.23,0.00012169,2]
[423559523,1780224632000,-74.32430224,0.00012154,2]
[423559521,1780224632000,-152.24,0.00012039,2]